fUSD/lending_fUSD_20250106
["ID","MTS","AMOUNT","RATE_DAILY","PERIOD"]
[347893602,1736185844258,-500.0,8.774e-05,2]
[347893603,1736185844268,-500.0,8.774e-05,2]
[347893604,1736185844277,-500.0,8.774e-05,2]
[347893605,1736185844287,-500.0,8.774e-05,2]
[347893606,1736185844297,-500.0,8.774e-05,2]
[347893607,1736185844306,-7972.91,8.774e-05,2]
[347893608,1736185844315,-500.0,8.774e-05,2]
[347893609,1736185844324,-500.0,8.774e-05,2]
[347893610,1736185844337,-507.59,8.774e-05,2]
[347893611,1736185844347,-1060.95,8.774e-05,2]
[347893612,1736185844356,-500.0,8.774e-05,2]
[347893613,1736185844365,-500.0,8.774e-05,2]
[347893614,1736185844375,-500.0,8.774e-05,2]
[347893615,1736185844384,-252.0094457,8.774e-05,2]
[347893616,1736185844392,-500.0,8.774e-05,2]
[347893617,1736185844401,-500.0,8.774e-05,2]
[347893618,1736185844409,-500.0,8.774e-05,2]
[347893619,1736185844418,-500.0,8.774e-05,2]
[347893620,1736185844427,-500.0,8.774e-05,2]
[347893621,1736185844436,-603.29,8.774e-05,2]
[347893622,1736185844445,-500.0,8.774e-05,2]
[347893623,1736185844454,-1853.41,8.774e-05,2]
[347893624,1736185844463,-659.34,8.774e-05,2]
[347893625,1736185844475,-500.0,8.774e-05,2]
[347893626,1736185844484,-500.0,8.774e-05,2]
[347893627,1736185844493,-500.0,8.774e-05,2]
[347893628,1736185844502,-500.0,8.774e-05,2]
[347893629,1736185844512,-500.0,8.774e-05,2]
[347893630,1736185844521,-500.0,8.774e-05,2]
[347893631,1736185844530,-500.0,8.774e-05,2]
[347893632,1736185844540,-719.38,8.774e-05,2]
[347893633,1736185844549,-500.0,8.774e-05,2]
[347893634,1736185844558,-537.88,8.774e-05,2]
[347893635,1736185844568,-500.0,8.774e-05,2]
[347893636,1736185844577,-500.0,8.774e-05,2]
[347893637,1736185844586,-500.0,8.774e-05,2]
[347893638,1736185844595,-500.0,8.774e-05,2]
[347893639,1736185844604,-500.0,8.774e-05,2]
[347893640,1736185844613,-2536.23,8.774e-05,2]
[347893641,1736185844623,-500.0,8.774e-05,2]
[347893642,1736185844632,-500.0,8.774e-05,2]
[347893643,1736185844641,-500.0,8.774e-05,2]
[347893644,1736185844651,-500.0,8.774e-05,2]
[347893645,1736185844660,-500.0,8.774e-05,2]
[347893646,1736185844669,-500.0,8.774e-05,2]
[347893647,1736185844678,-500.0,8.774e-05,2]
[347893648,1736185844687,-500.0,8.774e-05,2]
[347893649,1736185844696,-504.52333533,8.775e-05,2]
[347893650,1736185844704,-500.0,8.775e-05,2]
[347893651,1736185844714,-500.0,8.775e-05,2]
[347893652,1736185844725,-500.0,8.775e-05,2]
[347893653,1736185844734,-500.0,8.775e-05,2]
[347893654,1736185844743,-500.0,8.775e-05,2]
[347893655,1736185844752,-4481.69,8.775e-05,2]
[347893656,1736185844761,-1586.19187499,8.775e-05,2]
[347893657,1736185844781,-367.40669471,8.775e-05,2]
[347893658,1736185844810,-520.41,8.775e-05,2]
[347893659,1736185844836,-136.3814303,8.775e-05,2]
[347893660,1736185844846,-1348.42122485,8.775e-05,2]
[347893661,1736185844857,-226.45877515,8.775e-05,2]
[347893662,1736185844866,-2887.73,8.775e-05,2]
[347893663,1736185844876,-500.0,8.775e-05,2]
[347893664,1736185844887,-109.49263447,8.775e-05,2]
[347893668,1736185845730,-390.50736553,8.775e-05,2]
[347893669,1736185845739,-142.56366806,8.775e-05,2]
[347893670,1736185845757,-357.43633194,8.775e-05,2]
[347893671,1736185845767,-500.0,8.775e-05,2]
[347893672,1736185845776,-500.0,8.775e-05,2]
[347893673,1736185845786,-1279.28,8.775e-05,2]
[347893674,1736185845795,-500.0,8.775e-05,2]
[347893675,1736185845805,-500.0,8.775e-05,2]
[347893676,1736185845814,-500.0,8.775e-05,2]
[347893677,1736185845823,-500.0,8.775e-05,2]
[347893678,1736185845833,-802.91114187,8.775e-05,2]
[347893679,1736185845844,-523.24999839,8.775e-05,2]
[347893680,1736185845856,-877.81885974,8.775e-05,2]
[347893681,1736185845866,-500.0,8.775e-05,2]
[347893682,1736185845876,-500.0,8.775e-05,2]
[347893683,1736185845886,-981.98,8.775e-05,2]
[347893684,1736185845895,-500.0,8.775e-05,2]
[347893685,1736185845904,-33.91339225,8.775e-05,2]
[347893686,1736185845915,-1123.77660775,8.775e-05,2]
[347893688,1736185845925,-689.56,8.775e-05,2]
[347893689,1736185845935,-831.11,8.775e-05,2]
[347893691,1736185845944,-1430.35339225,8.775e-05,2]
[347893692,1736185845962,-2738.57660775,8.775e-05,2]
[347893693,1736185845975,-250.0,8.837e-05,2]
[347893694,1736185845984,-150.0,9e-05,2]
[347893695,1736185845994,-150.0,9e-05,2]
[347893697,1736185846003,-150.0,9e-05,2]
[347893699,1736185846013,-705.8,9.001e-05,2]
[347893702,1736185846022,-150.0,9.014e-05,2]
[347893704,1736185846032,-150.0,9.014e-05,2]
[347893706,1736185846041,-200.0,9.041e-05,2]
[347893709,1736185846050,-156.995149,9.047e-05,2]
[347893711,1736185846060,-500.0,9.047e-05,2]
[347893712,1736185846069,-1092.93,9.047e-05,2]
[347893715,1736185846079,-1714.38615953,9.047e-05,2]
[347893718,1736185846108,-832.29384047,9.047e-05,2]
[347893720,1736185846117,-645.27,9.047e-05,2]
[347893721,1736185846126,-165.00038398,9.047e-05,2]
[347893722,1736185846137,-334.99961602,9.047e-05,2]
[347893723,1736185846147,-500.0,9.047e-05,2]
[347893724,1736185846156,-500.0,9.047e-05,2]
[347893725,1736185846165,-500.0,9.047e-05,2]
[347893726,1736185846175,-500.0,9.047e-05,2]
[347893727,1736185846184,-543.78,9.047e-05,2]
[347893728,1736185846193,-1254.27,9.047e-05,2]
[347893729,1736185846202,-237.84968598,9.047e-05,2]
[347893730,1736185846316,-943.69031402,9.047e-05,2]
[347893731,1736185846327,-1488.17,9.047e-05,2]
[347893732,1736185846337,-550.36,9.047e-05,2]
[347893733,1736185846346,-500.0,9.047e-05,2]
[347893734,1736185846355,-500.0,9.047e-05,2]
[347893735,1736185846365,-1759.82,9.047e-05,2]
[347893736,1736185846374,-331.64039285,9.047e-05,2]
[347893737,1736185846385,-2233.76960715,9.047e-05,2]
[347893738,1736185846394,-959.92,9.047e-05,2]
[347893739,1736185846403,-500.0,9.047e-05,2]
[347893740,1736185846413,-752.29,9.047e-05,2]
[347893741,1736185846423,-500.0,9.047e-05,2]
[347893742,1736185846432,-500.0,9.047e-05,2]
[347893743,1736185846441,-2304.7,9.047e-05,2]
[347893744,1736185846451,-500.0,9.047e-05,2]
[347893745,1736185846460,-500.0,9.047e-05,2]
[347893746,1736185846470,-500.0,9.047e-05,2]
[347893747,1736185846480,-869.76,9.047e-05,2]
[347893748,1736185846489,-500.0,9.048e-05,2]
[347893749,1736185846499,-500.0,9.048e-05,2]
[347893750,1736185846508,-500.0,9.048e-05,2]
[347893751,1736185846518,-500.0,9.048e-05,2]
[347893752,1736185846527,-500.0,9.048e-05,2]
[347893753,1736185846536,-500.0,9.048e-05,2]
[347893754,1736185846546,-500.0,9.048e-05,2]
[347893755,1736185846555,-500.0,9.048e-05,2]
[347893756,1736185846564,-500.0,9.048e-05,2]
[347893757,1736185846573,-500.0,9.048e-05,2]
[347893758,1736185846583,-500.0,9.048e-05,2]
[347893759,1736185846592,-500.0,9.048e-05,2]
[347893760,1736185846601,-327.0483646,9.048e-05,2]
[347893761,1736185846610,-500.0,9.048e-05,2]
[347893762,1736185846619,-500.0,9.048e-05,2]
[347893763,1736185846628,-500.0,9.048e-05,2]
[347893764,1736185846637,-500.0,9.048e-05,2]
[347893765,1736185846647,-500.0,9.048e-05,2]
[347893766,1736185846655,-500.0,9.048e-05,2]
[347893767,1736185846665,-500.0,9.048e-05,2]
[347893768,1736185846674,-500.0,9.048e-05,2]
[347893769,1736185846683,-500.0,9.048e-05,2]
[347893770,1736185846693,-500.0,9.048e-05,2]
[347893771,1736185846702,-500.0,9.048e-05,2]
[347893772,1736185846711,-500.0,9.048e-05,2]
[347893773,1736185846723,-500.0,9.048e-05,2]
[347893774,1736185846732,-500.0,9.048e-05,2]
[347893775,1736185846741,-500.0,9.048e-05,2]
[347893776,1736185846751,-500.0,9.048e-05,2]
[347893778,1736185846760,-500.0,9.048e-05,2]
[347893779,1736185846770,-500.0,9.048e-05,2]
[347893780,1736185846779,-500.0,9.048e-05,2]
[347893782,1736185846788,-500.0,9.048e-05,2]
[347893783,1736185846797,-500.0,9.048e-05,2]
[347893784,1736185846806,-500.0,9.048e-05,2]
[347893785,1736185846815,-500.0,9.048e-05,2]
[347893786,1736185846824,-197.76783718,9.048e-05,2]
[347893787,1736185846834,-500.0,9.048e-05,2]
[347893788,1736185846843,-500.0,9.048e-05,2]
[347893789,1736185846852,-500.0,9.048e-05,2]
[347893790,1736185846862,-500.0,9.048e-05,2]
[347893791,1736185846871,-500.0,9.048e-05,2]
[347893792,1736185846880,-500.0,9.048e-05,2]
[347893793,1736185846890,-500.0,9.048e-05,2]
[347893794,1736185846899,-500.0,9.048e-05,2]
[347893795,1736185846908,-500.0,9.048e-05,2]
[347893796,1736185846917,-500.0,9.048e-05,2]
[347893797,1736185846927,-500.0,9.048e-05,2]
[347893798,1736185846936,-500.0,9.048e-05,2]
[347893799,1736185846945,-500.0,9.048e-05,2]
[347893800,1736185846954,-500.0,9.048e-05,2]
[347893801,1736185846964,-500.0,9.048e-05,2]
[347893802,1736185846975,-500.0,9.048e-05,2]
[347893803,1736185846984,-500.0,9.048e-05,2]
[347893804,1736185846993,-500.0,9.048e-05,2]
[347893805,1736185847002,-500.0,9.048e-05,2]
[347893806,1736185847011,-500.0,9.048e-05,2]
[347893807,1736185847020,-500.0,9.048e-05,2]
[347893808,1736185847030,-500.0,9.048e-05,2]
[347893809,1736185847039,-500.0,9.048e-05,2]
[347893810,1736185847048,-500.0,9.048e-05,2]
[347893811,1736185847057,-500.0,9.048e-05,2]
[347893812,1736185847066,-500.0,9.048e-05,2]
[347893813,1736185847075,-500.0,9.048e-05,2]
[347893814,1736185847084,-500.0,9.048e-05,2]
[347893815,1736185847097,-500.0,9.048e-05,2]
[347893816,1736185847110,-500.0,9.048e-05,2]
[347893817,1736185847126,-500.0,9.048e-05,2]
[347893818,1736185847138,-500.0,9.048e-05,2]
[347893819,1736185847150,-500.0,9.048e-05,2]
[347893820,1736185847164,-500.0,9.048e-05,2]
[347893821,1736185847177,-500.0,9.048e-05,2]
[347893822,1736185847190,-500.0,9.048e-05,2]
[347893823,1736185847203,-500.0,9.048e-05,2]
[347893824,1736185847217,-500.0,9.048e-05,2]
[347893825,1736185847230,-500.0,9.048e-05,2]
[347893826,1736185847243,-500.0,9.048e-05,2]
[347893827,1736185847255,-500.0,9.048e-05,2]
[347893828,1736185847268,-500.0,9.048e-05,2]
[347893829,1736185847282,-500.0,9.048e-05,2]
[347893830,1736185847295,-500.0,9.048e-05,2]
[347893831,1736185847309,-500.0,9.048e-05,2]
[347893832,1736185847322,-500.0,9.048e-05,2]
[347893833,1736185847336,-500.0,9.048e-05,2]
[347893834,1736185847349,-539.22,9.048e-05,2]
[347893836,1736185847364,-500.0,9.048e-05,2]
[347893837,1736185847376,-500.0,9.048e-05,2]
[347893838,1736185847389,-602.02593058,9.048e-05,2]
[347893839,1736185847402,-500.0,9.048e-05,2]
[347893840,1736185847413,-500.0,9.048e-05,2]
[347893841,1736185847427,-500.0,9.048e-05,2]
[347893842,1736185847440,-500.0,9.048e-05,2]
[347893843,1736185847452,-500.0,9.048e-05,2]
[347893844,1736185847464,-500.0,9.048e-05,2]
[347893845,1736185847477,-500.0,9.048e-05,2]
[347893846,1736185847487,-500.0,9.048e-05,2]
[347893847,1736185847499,-500.0,9.048e-05,2]
[347893848,1736185847513,-500.0,9.048e-05,2]
[347893849,1736185847528,-500.0,9.048e-05,2]
[347893850,1736185847538,-500.0,9.048e-05,2]
[347893851,1736185847550,-500.0,9.048e-05,2]
[347893852,1736185847563,-500.0,9.048e-05,2]
[347893853,1736185847576,-500.0,9.048e-05,2]
[347893854,1736185847590,-500.0,9.048e-05,2]
[347893855,1736185847602,-174.05183452,9.048e-05,2]
[347893856,1736185847612,-500.0,9.048e-05,2]
[347893857,1736185847623,-500.0,9.048e-05,2]
[347893858,1736185847635,-500.0,9.048e-05,2]
[347893859,1736185847646,-160.5,9.048e-05,2]
[347893860,1736185847659,-507.32,9.048e-05,2]
[347893861,1736185847673,-405.07,9.048e-05,2]
[347893862,1736185847686,-500.0,9.048e-05,2]
[347893863,1736185847697,-500.0,9.048e-05,2]
[347893864,1736185847709,-500.0,9.048e-05,2]
[347893865,1736185847720,-500.0,9.048e-05,2]
[347893866,1736185847732,-500.0,9.048e-05,2]
[347893867,1736185847743,-500.0,9.048e-05,2]
[347893868,1736185847755,-500.0,9.048e-05,2]
[347893869,1736185847766,-500.0,9.048e-05,2]
[347893870,1736185847778,-432.93197646,9.048e-05,2]
[347893871,1736185847789,-715.782707,9.048e-05,2]
[347893872,1736185847801,-500.0,9.048e-05,2]
[347893873,1736185847813,-500.0,9.048e-05,2]
[347893874,1736185847825,-500.0,9.048e-05,2]
[347893875,1736185847836,-500.0,9.048e-05,2]
[347893876,1736185847848,-462.19338936,9.048e-05,2]
[347893877,1736185847860,-519.68,9.048e-05,2]
[347893878,1736185847871,-500.0,9.048e-05,2]
[347893879,1736185847884,-500.0,9.048e-05,2]
[347893880,1736185847895,-500.0,9.048e-05,2]
[347893881,1736185847907,-500.0,9.048e-05,2]
[347893882,1736185847918,-500.0,9.048e-05,2]
[347893883,1736185847930,-500.0,9.048e-05,2]
[347893884,1736185847941,-500.0,9.048e-05,2]
[347893885,1736185847953,-500.0,9.048e-05,2]
[347893886,1736185847964,-500.0,9.048e-05,2]
[347893887,1736185847979,-500.0,9.048e-05,2]
[347893888,1736185847989,-500.0,9.048e-05,2]
[347893889,1736185848001,-718.500809,9.048e-05,2]
[347893890,1736185848012,-500.0,9.048e-05,2]
[347893891,1736185848024,-500.0,9.048e-05,2]
[347893892,1736185848035,-500.0,9.048e-05,2]
[347893893,1736185848047,-500.0,9.048e-05,2]
[347893894,1736185848059,-277.01,9.048e-05,2]
[347893895,1736185848071,-500.0,9.048e-05,2]
[347893896,1736185848082,-500.0,9.048e-05,2]
[347893897,1736185848094,-500.0,9.048e-05,2]
[347893898,1736185848106,-500.0,9.048e-05,2]
[347893899,1736185848118,-500.0,9.048e-05,2]
[347893900,1736185848129,-500.0,9.048e-05,2]
[347893901,1736185848141,-500.0,9.048e-05,2]
[347893902,1736185848152,-500.0,9.048e-05,2]
[347893903,1736185848164,-1192.88,9.048e-05,2]
[347893904,1736185848175,-500.0,9.048e-05,2]
[347893905,1736185848187,-500.0,9.048e-05,2]
[347893906,1736185848198,-500.0,9.048e-05,2]
[347893907,1736185848211,-500.0,9.048e-05,2]
[347893908,1736185848223,-600.75,9.048e-05,2]
[347893909,1736185848235,-500.0,9.048e-05,2]
[347893910,1736185848250,-498.4072783,9.048e-05,2]
[347893911,1736185848278,-1.5927217,9.048e-05,2]
[347893912,1736185848290,-448.21413234,9.048e-05,2]
[347893913,1736185848302,-153.81879106,9.048e-05,2]
[347893914,1736185848472,-214.46168851,8.499e-05,2]
[347893915,1736185848484,-543.35052028,8.773e-05,2]
[347893916,1736185848495,-346.18120894,9.048e-05,2]
[347893917,1736185848507,-500.0,9.048e-05,2]
[347893918,1736185848518,-500.0,9.048e-05,2]
[347893919,1736185848530,-564.77,9.048e-05,2]
[347893920,1736185848541,-500.0,9.048e-05,2]
[347893921,1736185848553,-500.0,9.048e-05,2]
[347893922,1736185848564,-500.0,9.048e-05,2]
[347893923,1736185848576,-500.0,9.048e-05,2]
[347893924,1736185848587,-500.0,9.048e-05,2]
[347893925,1736185848599,-500.0,9.048e-05,2]
[347893926,1736185848611,-500.0,9.048e-05,2]
[347893927,1736185848622,-500.0,9.048e-05,2]
[347893928,1736185848634,-500.0,9.048e-05,2]
[347893929,1736185848645,-500.0,9.048e-05,2]
[347893930,1736185848656,-500.0,9.048e-05,2]
[347893931,1736185848668,-500.0,9.048e-05,2]
[347893932,1736185848680,-500.0,9.048e-05,2]
[347893933,1736185848691,-500.0,9.048e-05,2]
[347893934,1736185848703,-500.0,9.048e-05,2]
[347893935,1736185848714,-500.0,9.048e-05,2]
[347893936,1736185848727,-500.0,9.048e-05,2]
[347893937,1736185848738,-500.0,9.048e-05,2]
[347893938,1736185848751,-543.43,9.048e-05,2]
[347893939,1736185848763,-500.0,9.048e-05,2]
[347893940,1736185848775,-500.0,9.048e-05,2]
[347893941,1736185848787,-500.0,9.048e-05,2]
[347893942,1736185848799,-500.0,9.048e-05,2]
[347893943,1736185848810,-500.0,9.048e-05,2]
[347893944,1736185848820,-500.0,9.048e-05,2]
[347893945,1736185848830,-500.0,9.048e-05,2]
[347893946,1736185848840,-500.0,9.048e-05,2]
[347893947,1736185848849,-500.0,9.048e-05,2]
[347893948,1736185848859,-500.0,9.048e-05,2]
[347893949,1736185848869,-227.52267595,9.048e-05,2]
[347893950,1736185848881,-272.47732405,9.048e-05,2]
[347893951,1736185848891,-120.46267595,9.048e-05,2]
[347893952,1736185849413,-524.60491564,8.499e-05,2]
[347893953,1736185849423,-500.0,8.5e-05,2]
[347893954,1736185849433,-500.0,8.773e-05,2]
[347893955,1736185849443,-379.53732405,9.048e-05,2]
[347893957,1736185849452,-500.0,9.048e-05,2]
[347893959,1736185849462,-500.0,9.048e-05,2]
[347893960,1736185849471,-500.0,9.048e-05,2]
[347893961,1736185849481,-500.0,9.048e-05,2]
[347893963,1736185849490,-1256.77,9.048e-05,2]
[347893964,1736185849499,-500.0,9.048e-05,2]
[347893966,1736185849509,-500.0,9.048e-05,2]
[347893968,1736185849519,-500.0,9.048e-05,2]
[347893969,1736185849529,-500.0,9.048e-05,2]
[347893970,1736185849538,-500.0,9.048e-05,2]
[347893971,1736185849547,-500.0,9.048e-05,2]
[347893972,1736185849557,-500.0,9.048e-05,2]
[347893973,1736185849566,-500.0,9.048e-05,2]
[347893974,1736185849575,-500.0,9.048e-05,2]
[347893975,1736185849584,-500.0,9.048e-05,2]
[347893976,1736185849593,-500.0,9.048e-05,2]
[347893977,1736185849603,-734.82,9.048e-05,2]
[347893978,1736185849612,-500.0,9.048e-05,2]
[347893979,1736185849621,-500.0,9.048e-05,2]
[347893980,1736185849631,-500.0,9.048e-05,2]
[347893981,1736185849640,-500.0,9.048e-05,2]
[347893982,1736185849650,-500.0,9.048e-05,2]
[347893983,1736185849659,-3194.7,9.048e-05,2]
[347893984,1736185849669,-500.0,9.048e-05,2]
[347893985,1736185849678,-500.0,9.048e-05,2]
[347893986,1736185849687,-500.0,9.048e-05,2]
[347893987,1736185849696,-500.0,9.048e-05,2]
[347893988,1736185849705,-500.0,9.048e-05,2]
[347893989,1736185849715,-500.0,9.048e-05,2]
[347893990,1736185849726,-500.0,9.048e-05,2]
[347893991,1736185849735,-500.0,9.048e-05,2]
[347893992,1736185849744,-500.0,9.048e-05,2]
[347893993,1736185849754,-500.0,9.048e-05,2]
[347893994,1736185849764,-500.0,9.048e-05,2]
[347893995,1736185849773,-500.0,9.048e-05,2]
[347893996,1736185849783,-500.0,9.048e-05,2]
[347893997,1736185849793,-500.0,9.048e-05,2]
[347893998,1736185849802,-500.0,9.048e-05,2]
[347893999,1736185849813,-500.0,9.048e-05,2]
[347894000,1736185849823,-500.0,9.048e-05,2]
[347894001,1736185849832,-647.778809,9.048e-05,2]
[347894002,1736185849842,-1824.35,9.048e-05,2]
[347894003,1736185849852,-500.0,9.048e-05,2]
[347894004,1736185849861,-290.43767616,9.048e-05,2]
[347894005,1736185849871,-500.0,9.048e-05,2]
[347894006,1736185849880,-500.0,9.048e-05,2]
[347894007,1736185849890,-500.0,9.048e-05,2]
[347894008,1736185849899,-500.0,9.048e-05,2]
[347894009,1736185849909,-500.0,9.048e-05,2]
[347894011,1736185849919,-7972.91,9.048e-05,2]
[347894013,1736185849928,-500.0,9.048e-05,2]
[347894015,1736185849937,-500.0,9.048e-05,2]
[347894016,1736185849946,-1060.95,9.048e-05,2]
[347894017,1736185849956,-507.59,9.048e-05,2]
[347894018,1736185849965,-500.0,9.048e-05,2]
[347894019,1736185849976,-500.0,9.048e-05,2]
[347894020,1736185849986,-500.0,9.048e-05,2]
[347894021,1736185849996,-500.0,9.048e-05,2]
[347894022,1736185850006,-500.0,9.048e-05,2]
[347894023,1736185850015,-500.0,9.048e-05,2]
[347894024,1736185850024,-500.0,9.048e-05,2]
[347894025,1736185850034,-500.0,9.048e-05,2]
[347894026,1736185850043,-603.29,9.048e-05,2]
[347894027,1736185850052,-500.0,9.048e-05,2]
[347894028,1736185850062,-1853.41,9.048e-05,2]
[347894029,1736185850072,-659.34,9.048e-05,2]
[347894030,1736185850081,-500.0,9.048e-05,2]
[347894031,1736185850091,-500.0,9.048e-05,2]
[347894033,1736185850100,-500.0,9.048e-05,2]
[347894035,1736185850109,-500.0,9.048e-05,2]
[347894037,1736185850118,-500.0,9.048e-05,2]
[347894038,1736185850127,-500.0,9.048e-05,2]
[347894040,1736185850137,-719.38,9.048e-05,2]
[347894042,1736185850146,-500.0,9.048e-05,2]
[347894043,1736185850155,-537.88,9.048e-05,2]
[347894044,1736185850164,-500.0,9.048e-05,2]
[347894045,1736185850174,-500.0,9.048e-05,2]
[347894046,1736185850183,-500.0,9.048e-05,2]
[347894047,1736185850192,-500.0,9.048e-05,2]
[347894048,1736185850201,-500.0,9.048e-05,2]
[347894049,1736185850212,-2536.23,9.048e-05,2]
[347894050,1736185850222,-500.0,9.048e-05,2]
[347894051,1736185850232,-500.0,9.048e-05,2]
[347894052,1736185850241,-500.0,9.048e-05,2]
[347894053,1736185850254,-500.0,9.048e-05,2]
[347894054,1736185850265,-500.0,9.048e-05,2]
[347894055,1736185850274,-500.0,9.048e-05,2]
[347894056,1736185850283,-500.0,9.048e-05,2]
[347894057,1736185850293,-500.0,9.048e-05,2]
[347894058,1736185850303,-500.0,9.049e-05,2]
[347894059,1736185850312,-500.0,9.049e-05,2]
[347894060,1736185850321,-500.0,9.049e-05,2]
[347894061,1736185850332,-2704.40337274,9.049e-05,2]
[347894062,1736185850346,-1777.28662726,9.049e-05,2]
[347894063,1736185850355,-2610.39,9.049e-05,2]
[347894064,1736185850364,-1574.88,9.049e-05,2]
[347894065,1736185850374,-2887.73,9.049e-05,2]
[347894066,1736185850383,-500.0,9.049e-05,2]
[347894067,1736185850392,-500.0,9.049e-05,2]
[347894068,1736185850401,-500.0,9.049e-05,2]
[347894069,1736185850411,-500.0,9.049e-05,2]
[347894070,1736185850421,-1279.28,9.049e-05,2]
[347894071,1736185850430,-500.0,9.049e-05,2]
[347894072,1736185850439,-500.0,9.049e-05,2]
[347894073,1736185850448,-189.72966051,9.049e-05,2]
[347894074,1736185850458,-500.0,9.049e-05,2]
[347894075,1736185850467,-2203.98,9.049e-05,2]
[347894076,1736185850479,-500.0,9.049e-05,2]
[347894077,1736185850488,-500.0,9.049e-05,2]
[347894078,1736185850497,-500.0,9.049e-05,2]
[347894079,1736185850506,-981.98,9.049e-05,2]
[347894080,1736185850516,-500.0,9.049e-05,2]
[347894081,1736185850525,-1157.69,9.049e-05,2]
[347894082,1736185850534,-689.56,9.049e-05,2]
[347894083,1736185850543,-831.11,9.049e-05,2]
[347894084,1736185850552,-4168.93,9.049e-05,2]
[347894085,1736185850561,-150.0,9.104e-05,2]
[347894086,1736185850570,-255.0,9.17e-05,2]
[347894087,1736185850580,-172.66,9.196e-05,2]
[347894088,1736185850589,-94856.09942475,9.23e-05,2]
[347894089,1736185850599,-1000.0,9.247e-05,2]
[347894090,1736185850608,-1141.27,9.263e-05,2]
[347894091,1736185850617,-1000.0,9.263e-05,2]
[347894092,1736185850627,-500.0,9.263e-05,2]
[347894093,1736185850636,-500.0,9.263e-05,2]
[347894094,1736185850645,-1855.16,9.263e-05,2]
[347894095,1736185850654,-1089.01,9.263e-05,2]
[347894096,1736185850663,-1092.93,9.321e-05,2]
[347894097,1736185850673,-2546.68,9.321e-05,2]
[347894098,1736185850682,-645.27,9.321e-05,2]
[347894099,1736185850691,-500.0,9.321e-05,2]
[347894100,1736185850700,-500.0,9.321e-05,2]
[347894101,1736185850710,-500.0,9.321e-05,2]
[347894102,1736185850720,-543.78,9.321e-05,2]
[347894103,1736185850730,-1254.27,9.321e-05,2]
[347894104,1736185850739,-1181.54,9.321e-05,2]
[347894105,1736185850748,-1488.17,9.321e-05,2]
[347894106,1736185850758,-550.36,9.321e-05,2]
[347894107,1736185850767,-500.0,9.321e-05,2]
[347894108,1736185850777,-500.0,9.321e-05,2]
[347894109,1736185850786,-1759.82,9.321e-05,2]
[347894110,1736185850796,-2565.41,9.321e-05,2]
[347894111,1736185850805,-959.92,9.321e-05,2]
[347894112,1736185850815,-500.0,9.321e-05,2]
[347894113,1736185850824,-752.29,9.321e-05,2]
[347894114,1736185850834,-500.0,9.321e-05,2]
[347894115,1736185850843,-500.0,9.321e-05,2]
[347894116,1736185850852,-2304.7,9.321e-05,2]
[347894117,1736185850862,-500.0,9.321e-05,2]
[347894118,1736185850871,-500.0,9.321e-05,2]
[347894119,1736185850880,-500.0,9.321e-05,2]
[347894120,1736185850890,-869.76,9.321e-05,2]
[347894121,1736185850899,-500.0,9.322e-05,2]
[347894122,1736185850910,-500.0,9.322e-05,2]
[347894123,1736185850919,-500.0,9.322e-05,2]
[347894124,1736185850928,-500.0,9.322e-05,2]
[347894125,1736185850938,-500.0,9.322e-05,2]
[347894126,1736185850947,-500.0,9.322e-05,2]
[347894127,1736185850957,-500.0,9.322e-05,2]
[347894128,1736185850966,-500.0,9.322e-05,2]
[347894129,1736185850979,-500.0,9.322e-05,2]
[347894130,1736185850988,-500.0,9.322e-05,2]
[347894131,1736185850999,-500.0,9.322e-05,2]
[347894132,1736185851008,-500.0,9.322e-05,2]
[347894133,1736185851017,-500.0,9.322e-05,2]
[347894134,1736185851027,-500.0,9.322e-05,2]
[347894135,1736185851037,-500.0,9.322e-05,2]
[347894136,1736185851046,-500.0,9.322e-05,2]